[Event "Candidates Tournament"]
[Site "Khanty-Mansiysk"]
[Date "2014.03.13"]
[Round "1"]
[White "Andreikin, Dmitry"]
[Black "Kramnik, Vladimir"]
[Result "1/2-1/2"]
[ECO "E36"]
[WhiteElo "2709"]
[BlackElo "2787"]
[Annotator "ChessBase Website"]
[PlyCount "64"]
[EventDate "2014.03.13"]
[EventType "tourn"]
[EventRounds "14"]
[EventCountry "RUS"]
[EventCategory "21"]
[SourceTitle "CBM 160"]
[Source "ChessBase"]
[SourceDate "2014.05.15"]
[SourceVersion "1"]
[SourceVersionDate "2014.05.15"]
[SourceQuality "1"]
[TimeControl "40/7200:20/3600:900+30"]
[WhiteClock "1:25:42"]
[BlackClock "1:14:56"]

1. d4 {[%emt 0:00:06]} Nf6 {[%emt 0:00:09]} 2. c4 {[%emt 0:00:07]} e6 {[%emt 0:
00:06]} 3. Nc3 {[%emt 0:00:11]} Bb4 {[%emt 0:00:20]} 4. Qc2 {[%emt 0:00:13]
For Dmitri Andreikin and Vladimir Kramnik, it was an opportunity to see
whether Kramnik would try to bully his way past Andreikin, or whether
Andreikin would be content to neutralize his prestigious opponent. Andreikin
is a superb technical player, but is not one prone to taking risks, and it
bears remembering that during his superb runner-up performance at the World
Cup last year, losing to the former world champion, he had only won a single
classical game, winning nearly all his matches in the rapid tiebreaks.} O-O {
[%emt 0:00:26]} 5. a3 {[%emt 0:00:30]} Bxc3+ {[%emt 0:00:13]} 6. Qxc3 {[%emt 0:
00:09]} d5 {[%emt 0:00:04]} 7. Nf3 {[%emt 0:00:27]} dxc4 {[%emt 0:00:21]} 8.
Qxc4 {[%emt 0:00:24]} b6 {[%emt 0:00:06]} 9. Bg5 {[%emt 0:01:43]} Ba6 {[%emt 0:
00:28]} 10. Qa4 {[%emt 0:03:43]} (10. Qc3 h6 11. Bxf6 Qxf6 12. g3 Bb7 13. Bg2
Na6 14. O-O c5 15. Rac1 Rac8 16. Ne5 cxd4 17. Qxd4 Bxg2 18. Kxg2 Nc5 19. b4 Nb3
20. Rxc8 Rxc8 21. Qd7 Rf8 22. f4 Qf5 23. Rf3 Qc2 24. Qd3 Qxd3 25. Rxd3 Nc1 26.
Rd2 Rc8 27. h4 h5 28. b5 Rc7 29. Nc6 Kh7 30. Rb2 a5 31. Kf2 Rd7 32. Ne5 Rc7 33.
Rd2 f6 34. Nd7 Nb3 35. Nf8+ Kg8 36. Rd7 Rxd7 37. Nxd7 Nd4 38. a4 Nxb5 39. axb5
a4 {Nakamura,H (2786)-Kramnik,V (2793) Antalya 2013 1-0}) 10... Qd7 {[%emt 0:
01:16]} 11. Qc2 {[%emt 0:00:36]} c5 {[%emt 0:01:01]} 12. dxc5 {[%emt 0:00:59]}
Rc8 {[%emt 0:00:47]} 13. Bxf6 {[%emt 0:00:22]} gxf6 {[%emt 0:00:19]} 14. Qe4 {
[%emt 0:00:22]} Qb5 {[%emt 0:01:52]} 15. b4 {[%emt 0:04:24]} bxc5 {[%emt 0:04:
02]} 16. e3 {[%emt 0:05:34]} Qb7 {[%emt 0:01:00]} 17. Qg4+ {[%emt 0:00:20]} Kf8
{[%emt 0:01:24]} 18. b5 {[%emt 0:03:05]} Bxb5 {[%emt 0:00:45]} 19. Rb1 {
[%emt 0:00:20]} a6 {[%emt 0:00:05]} 20. a4 {[%emt 0:00:16]} f5 {[%emt 0:00:15]}
21. Qf4 $146 {[%emt 0:00:45]} (21. Qh4 Qe4 22. Qh6+ Ke7 23. Qg5+ Kf8 24. Qh6+
Ke7 25. Qg5+ Kf8 26. Qh6+ Ke7 {1/2-1/2 (26) Mamedyarov,S (2753)-Kramnik,V 
(2803) Moscow 2013}) 21... Qe4 {[%emt 0:01:21] To those seeing the opening
played for the first time, it might have seemed like sharp action was taking
place, but the entire Nimzo-Indian line played was a rinse-and-repeat
operation that had been seen up until the 21st move last year in
Mamedyarov-Kramnik (Moscow, 2013). That game ended in a draw shortly after on
the 26th move, and today was not a big improvement.} 22. Qxe4 {[%emt 0:00:07]}
fxe4 {[%emt 0:00:06]} 23. axb5 {[%emt 0:00:09]} exf3 {[%emt 0:00:05]} 24. b6 {
[%emt 0:00:10]} Rd8 {[%emt 0:07:51]} 25. gxf3 {[%emt 0:02:00]} Nc6 {[%emt 0:00:
33]} 26. f4 {[%emt 0:01:55]} Nb4 {[%emt 0:07:13]} 27. Bg2 {[%emt 0:02:09]} Rab8
{[%emt 0:00:21]} 28. b7 {[%emt 0:00:10]} Nd5 {[%emt 0:03:35]} 29. O-O {[%emt 0:
00:53]} Rd7 {[%emt 0:02:47]} 30. Rfc1 {[%emt 0:00:07]} Rdxb7 {[%emt 0:05:27]}
31. Rxb7 {[%emt 0:01:50]} Rxb7 {[%emt 0:00:37]} 32. Bxd5 {[%emt 0:00:12]} exd5
{[%emt 0:00:09]} 1/2-1/2

[Event "Candidates Tournament"]
[Site "Khanty-Mansiysk"]
[Date "2014.03.14"]
[Round "2"]
[White "Aronian, Levon"]
[Black "Mamedyarov, Shakhriyar"]
[Result "1-0"]
[ECO "D38"]
[WhiteElo "2830"]
[BlackElo "2757"]
[Annotator "ChessBase Website"]
[PlyCount "87"]
[EventDate "2014.03.13"]
[EventType "tourn"]
[EventRounds "14"]
[EventCountry "RUS"]
[EventCategory "21"]
[SourceTitle "CBM 160"]
[Source "ChessBase"]
[SourceDate "2014.05.15"]
[SourceVersion "1"]
[SourceVersionDate "2014.05.15"]
[SourceQuality "1"]
[TimeControl "40/7200:20/3600:900+30"]
[WhiteClock "0:57:55"]
[BlackClock "1:45:08"]

1. d4 {[%emt 0:00:04]} Nf6 {[%emt 0:00:07]} 2. c4 {[%emt 0:00:05]} e6 {[%emt 0:
00:06]} 3. Nf3 {[%emt 0:00:12]} d5 {[%emt 0:00:08]} 4. Nc3 {[%emt 0:00:07]} Bb4
{[%emt 0:00:08]} 5. Bg5 {[%emt 0:00:33]} Nbd7 {[%emt 0:00:15]} 6. cxd5 {
[%emt 0:00:57]} exd5 {[%emt 0:00:10]} 7. Nd2 {[%emt 0:00:13]} c6 {[%emt 0:06:
08]} 8. e3 {[%emt 0:00:29]} Nf8 {[%emt 0:06:29]} 9. Bd3 {[%emt 0:00:13]} Ng6 {
[%emt 0:00:11]} (9... Be7 10. Qc2 Ne6 11. Bh4 g6 12. h3 O-O 13. Nf3 a5 14. g4
b5 15. Ne5 Bb7 16. f4 c5 17. f5 cxd4 18. fxe6 dxc3 19. O-O d4 20. Nxf7 Qd5 21.
Bxf6 Qh1+ 22. Kf2 Qxh3 23. Ke1 cxb2 24. Qxb2 Bb4+ 25. Kd1 Bf3+ 26. Rxf3 Qxf3+
27. Be2 Qxf6 28. g5 Qg7 29. Qxd4 Rxf7 30. exf7+ Qxf7 31. Rc1 Rb8 32. a4 Qb3+
33. Rc2 Qb1+ 34. Rc1 Qb3+ 35. Rc2 Rc8 36. Bc4+ bxc4 37. Qd5+ Kf8 38. Qd7 Re8 {
0-1 (38) Aronian,L (2807)-Ivanchuk,V (2765) Sao Paulo/Bilbao 2011}) 10. O-O {
[%emt 0:05:16]} O-O {[%emt 0:03:27]} 11. f4 $146 {[%emt 0:01:31]} (11. Qc2 h6
12. Bxf6 Qxf6 13. Rae1 Nh4 14. f4 Bf5 15. Nf3 Rfe8 16. Nxh4 Bxd3 17. Qxd3 Qxh4
18. Re2 Rad8 19. a3 Bf8 20. b4 Rd7 21. Rf3 Qd8 22. g4 a5 23. bxa5 Qxa5 24. g5
hxg5 25. fxg5 Qxa3 26. g6 Re6 27. gxf7+ Rxf7 28. Ref2 Rxf3 29. Rxf3 b5 30. Rh3
Rf6 31. e4 Qc1+ 32. Kg2 Qe1 33. Rg3 b4 34. Qe2 Qxe2+ 35. Nxe2 dxe4 36. Re3 Re6
37. Ng3 g6 38. Rb3 Kf7 39. Kf2 c5 40. Ke3 c4 {Vokac,M (2479)-Kravtsiv,M (2582)
Pardubice 2012 0-1}) 11... h6 {[%emt 0:01:33]} 12. Bxf6 {[%emt 0:00:16]} Qxf6 {
[%emt 0:00:04]} 13. f5 {[%emt 0:04:45] Levon Aronian had commented in the
round one press conference after his loss that statistically he had a record
for playing better after a loss, and he felt this. He quipped that he had
might as well get it out of the way as early as possible. Still, even he could
not have predicted what happened though, when Shakhriyar Mamedyarov, a great
tactician in his own right, carelessly went astray in a Queen's Gambit, and
fell for a vicious tactic that lost his queen.} Ne7 $2 {[%emt 0:03:40]} 14.
Nde4 $1 {[%emt 0:10:35][%csl Rf6]} dxe4 {[%emt 0:00:59]} 15. Nxe4 {[%emt 0:00:
07]} Qh4 {[%emt 0:06:27]} 16. g3 {[%emt 0:00:07]} Qh3 {[%emt 0:00:04]} 17. Nf2
{[%emt 0:02:32]} Qxf1+ {[%emt 0:00:05]} 18. Kxf1 {[%emt 0:09:17]} Nxf5 {
[%emt 0:03:34]} 19. Qf3 {[%emt 0:00:31]} Nd6 {[%emt 0:07:06]} 20. e4 {[%emt 0:
02:50]} f6 {[%emt 0:06:39]} 21. Bc2 {[%emt 0:23:11]} Be6 {[%emt 0:01:52]} 22.
Nd3 {[%emt 0:00:53]} Nc4 {[%emt 0:00:12]} 23. Kg1 {[%emt 0:01:11]} Bd6 {
[%emt 0:02:53]} 24. Nf4 {[%emt 0:09:55]} Bxf4 {[%emt 0:00:10]} 25. gxf4 {
[%emt 0:00:19]} Rad8 {[%emt 0:03:50]} 26. f5 {[%emt 0:06:49]} Bf7 {[%emt 0:00:
09]} 27. Qc3 {[%emt 0:00:23]} Rfe8 {[%emt 0:00:52]} 28. Bd3 {[%emt 0:05:50]}
Nb6 {[%emt 0:00:22]} 29. a4 {[%emt 0:01:19]} a6 {[%emt 0:00:25]} 30. a5 {
[%emt 0:02:16]} Nc8 {[%emt 0:02:57]} 31. e5 {[%emt 0:01:54]} Ne7 {[%emt 0:00:
22]} 32. e6 {[%emt 0:04:30]} Bh5 {[%emt 0:00:10]} 33. Be4 {[%emt 0:02:28]} Nd5
{[%emt 0:08:39]} 34. Qh3 {[%emt 0:01:25]} Be2 {[%emt 0:00:37]} 35. Kf2 {
[%emt 0:01:12]} Bb5 {[%emt 0:00:12]} 36. Rg1 {[%emt 0:00:55]} Kh7 {[%emt 0:00:
05]} 37. Qa3 {[%emt 0:03:14]} Bc4 {[%emt 0:00:58]} 38. Rg4 {[%emt 0:03:36]} Bb5
{[%emt 0:00:07]} 39. Rg1 {[%emt 0:02:35]} Bc4 {[%emt 0:00:07]} 40. Rc1 {
[%emt 0:00:00]} Bb5 {[%emt 0:00:00]} 41. Bf3 {[%emt 0:01:42]} Nf4 {[%emt 0:00:
46]} 42. Rd1 {[%emt 0:03:02]} Kh8 {[%emt 0:00:09]} 43. d5 {[%emt 0:02:10]} Nxd5
{[%emt 0:01:38]} 44. Bh5 {[%emt 0:00:36]} 1-0

[Event "Candidates Tournament"]
[Site "Khanty-Mansiysk"]
[Date "2014.03.14"]
[Round "2"]
[White "Topalov, Veselin"]
[Black "Anand, Viswanathan"]
[Result "1/2-1/2"]
[ECO "A11"]
[WhiteElo "2785"]
[BlackElo "2770"]
[Annotator "ChessBase Website"]
[PlyCount "108"]
[EventDate "2014.03.13"]
[EventType "tourn"]
[EventRounds "14"]
[EventCountry "RUS"]
[EventCategory "21"]
[SourceTitle "CBM 160"]
[Source "ChessBase"]
[SourceDate "2014.05.15"]
[SourceVersion "1"]
[SourceVersionDate "2014.05.15"]
[SourceQuality "1"]
[TimeControl "40/7200:20/3600:900+30"]
[WhiteClock "1:11:11"]
[BlackClock "1:54:04"]

1. Nf3 {[%emt 0:00:04]} d5 {[%emt 0:00:20]} 2. c4 {[%emt 0:00:05]} c6 {[%emt 0:
00:05]} 3. e3 {[%emt 0:00:07]} Nf6 {[%emt 0:00:16]} 4. Nc3 {[%emt 0:00:05]}
Nbd7 {[%emt 0:00:49]} 5. Qc2 {[%emt 0:03:27] Topalov-Anand was a classic clash,
in which the Bulgarian sidestepped the massive preparation he knew Anand would
still have stored up from his World Championship match, and played a flexible
Reti setup. This led to uncharted waters as of 7...Bd6. Black gave a pawn to
complete his development and play against the fractured pawn structure, which
was enough to keep the balance but no more.} e5 {[%emt 0:02:31]} 6. cxd5 {
[%emt 0:01:18]} Nxd5 {[%emt 0:00:14]} 7. d4 {[%emt 0:05:02]} Bd6 $146 {[%emt 0:
01:55]} (7... exd4 8. Nxd5 Qa5+ 9. Bd2 Qxd5 10. Bc4 Qh5 11. Nxd4 Nf6 12. f3 a6
13. O-O-O Bd7 14. g4 Qc5 15. Nb3 Qe7 16. e4 Be6 17. Nd4 Bxc4 18. Qxc4 c5 19.
Nf5 Qe6 20. Qa4+ b5 21. Qa5 g6 22. Rhe1 Qc6 23. Bf4 gxf5 24. exf5+ Be7 25. Bd6
Nd5 26. Rxd5 Qxd5 27. Rxe7+ Kf8 28. Rd7+ Ke8 29. Qe1+ {1-0 (29) Nogueiras
Santiago,J (2482)-Abreu Delgado,A (2459) Havana 2004}) 8. dxe5 {[%emt 0:08:17]}
Nxe5 {[%emt 0:00:25]} 9. Nxe5 {[%emt 0:06:53]} Bxe5 {[%emt 0:00:10]} 10. Qe4 {
[%emt 0:03:48]} Qe7 {[%emt 0:02:22]} 11. Nxd5 {[%emt 0:06:34]} cxd5 {[%emt 0:
00:15]} 12. Bb5+ {[%emt 0:01:29]} Kf8 {[%emt 0:00:40]} 13. Qxd5 {[%emt 0:01:18]
} g6 {[%emt 0:07:53]} 14. Bd2 {[%emt 0:15:23]} Kg7 {[%emt 0:03:37]} 15. Qxe5+ {
[%emt 0:14:21]} Qxe5 {[%emt 0:00:56]} 16. Bc3 {[%emt 0:00:09]} Qxc3+ {[%emt 0:
00:06]} 17. bxc3 {[%emt 0:00:03]} Be6 {[%emt 0:00:21]} 18. Ke2 {[%emt 0:03:23]}
Rac8 {[%emt 0:06:12]} 19. Rhc1 {[%emt 0:01:30]} Rc5 {[%emt 0:00:35]} 20. a4 {
[%emt 0:00:30]} Rhc8 {[%emt 0:02:50]} 21. Ra3 {[%emt 0:00:22]} a6 {[%emt 0:02:
53]} 22. Bd3 {[%emt 0:00:26]} b5 {[%emt 0:00:42]} 23. axb5 {[%emt 0:02:16]}
axb5 {[%emt 0:00:29]} 24. Rb1 {[%emt 0:05:15]} Rxc3 {[%emt 0:00:14]} 25. Rxc3 {
[%emt 0:00:04]} Rxc3 {[%emt 0:00:09]} 26. Rxb5 {[%emt 0:05:32]} Bc4 {[%emt 0:
01:23]} 27. Bxc4 {[%emt 0:00:09]} Rxc4 {[%emt 0:00:05]} 28. Kf3 {[%emt 0:00:15]
} h5 {[%emt 0:00:08]} 29. h3 {[%emt 0:00:18]} Rc2 {[%emt 0:00:32]} 30. Rb1 {
[%emt 0:03:38]} Kf6 {[%emt 0:00:11]} 31. Re1 {[%emt 0:00:09]} g5 {[%emt 0:08:
38]} 32. Ra1 {[%emt 0:05:06]} Kg6 {[%emt 0:02:13]} 33. Ra6+ {[%emt 0:01:41]} f6
{[%emt 0:00:18]} 34. Ra4 {[%emt 0:00:36]} h4 {[%emt 0:01:29]} 35. g3 {[%emt 0:
00:09]} hxg3 {[%emt 0:00:05]} 36. Kxg3 {[%emt 0:00:03]} Rb2 {[%emt 0:01:31]}
37. e4 {[%emt 0:02:10]} Rb1 {[%emt 0:02:32]} 38. f3 {[%emt 0:00:35]} Rg1+ {
[%emt 0:00:11]} 39. Kf2 {[%emt 0:00:06]} Rh1 {[%emt 0:00:07]} 40. Kg2 {[%emt 0:
00:00]} Rb1 {[%emt 0:00:00]} 41. Ra6 {[%emt 0:00:16]} Kf7 {[%emt 0:00:14]} 42.
Ra5 {[%emt 0:00:42]} Kg6 {[%emt 0:00:18]} 43. Ra6 {[%emt 0:00:06]} Kf7 {
[%emt 0:00:07]} 44. Ra2 {[%emt 0:00:07]} Ke6 {[%emt 0:05:14]} 45. Kg3 {[%emt 0:
00:58]} Rg1+ {[%emt 0:01:48]} 46. Rg2 {[%emt 0:00:06]} Rxg2+ {[%emt 0:00:54]}
47. Kxg2 {[%emt 0:00:05]} Ke5 {[%emt 0:00:08]} 48. Kf2 {[%emt 0:02:33]} Kf4 {
[%emt 0:00:08]} 49. Kg2 {[%emt 0:00:04]} Ke5 {[%emt 0:00:16]} 50. Kg3 {[%emt 0:
00:27]} f5 {[%emt 0:00:07]} 51. exf5 {[%emt 0:00:09]} Kxf5 {[%emt 0:00:04]} 52.
h4 {[%emt 0:00:31]} gxh4+ {[%emt 0:00:06]} 53. Kxh4 {[%emt 0:00:05]} Kf4 {
[%emt 0:00:04]} 54. Kh3 {[%emt 0:00:04] It is almost ironic that when they
shook hands on move 54, with their bare kings, their game was the first to end,
despite having the most moves played of all the skirmishes in the round.} Kxf3
{[%emt 0:00:06]} 1/2-1/2

[Event "Candidates Tournament"]
[Site "Khanty-Mansiysk"]
[Date "2014.03.15"]
[Round "3"]
[White "Andreikin, Dmitry"]
[Black "Karjakin, Sergey"]
[Result "1/2-1/2"]
[ECO "C65"]
[WhiteElo "2709"]
[BlackElo "2766"]
[Annotator "ChessBase Website"]
[PlyCount "60"]
[EventDate "2014.03.13"]
[EventType "tourn"]
[EventRounds "14"]
[EventCountry "RUS"]
[EventCategory "21"]
[SourceTitle "CBM 160"]
[Source "ChessBase"]
[SourceDate "2014.05.15"]
[SourceVersion "1"]
[SourceVersionDate "2014.05.15"]
[SourceQuality "1"]
[TimeControl "40/7200:20/3600:900+30"]
[WhiteClock "0:41:29"]
[BlackClock "0:44:38"]

1. e4 {[%emt 0:00:04]} e5 {[%emt 0:00:07]} 2. Nf3 {[%emt 0:00:08]} Nc6 {
[%emt 0:00:03]} 3. Bb5 {[%emt 0:00:09]} Nf6 {[%emt 0:00:18]} 4. d3 {[%emt 0:00:
11] This Russian duel was not as interesting as the other one. Andreikin
side-stepped the Berlin variation of the Spanish by playing an early 4.d3 but
he was unable to obtain anything at all from the opening. Some pieces came off
and the opposite colored bishop endgame with queens was an obvious draw that
the players did not play out.} Bc5 {[%emt 0:00:16]} 5. c3 {[%emt 0:00:07]} O-O
{[%emt 0:00:16]} 6. O-O {[%emt 0:00:13]} d6 {[%emt 0:00:21]} 7. Nbd2 {[%emt 0:
00:33]} Ne7 {[%emt 0:00:58]} 8. d4 {[%emt 0:05:46]} (8. h3 c6 9. Ba4 Ng6 10. d4
Bb6 11. Re1 Re8 12. Bc2 Bc7 13. Nf1 d5 14. exd5 e4 15. d6 Qxd6 16. N3d2 Bf5 17.
Nc4 Qd7 18. Bg5 Nd5 19. Ng3 Be6 20. Bxe4 Nxc3 21. bxc3 Bxc4 22. Qf3 Qd6 23. a4
Bd5 24. Bd2 Nf8 25. Rab1 b6 26. Qg4 Nd7 27. Bd3 g6 28. Qh4 f5 29. c4 Bf7 30.
Bc3 Qf6 31. Qxf6 Nxf6 32. d5 Nd7 33. dxc6 Nc5 34. Bc2 Bxc4 35. Rbd1 Rxe1+ 36.
Rxe1 Kf7 37. Nf1 Bd5 {Robson,R (2628)-Dominguez Perez,L (2757) St Louis 2014
0-1 (65)}) 8... exd4 {[%emt 0:00:57]} 9. cxd4 {[%emt 0:00:06]} Bb6 {[%emt 0:00:
03]} 10. h3 {[%emt 0:01:18]} d5 {[%emt 0:02:39]} 11. e5 {[%emt 0:13:18]} Ne4 {
[%emt 0:00:30]} 12. Bd3 {[%emt 0:04:15]} Bf5 {[%emt 0:00:43]} 13. Qe2 {[%emt 0:
00:12]} Nc6 {[%emt 0:00:38]} 14. Rd1 {[%emt 0:06:23]} Bxd4 $146 {[%emt 0:30:05]
} (14... Nxd4 15. Nxd4 Bxd4 16. Bxe4 dxe4 17. Nb3 c5 18. Be3 Qe7 19. Nxd4 cxd4
20. Bxd4 {1/2-1/2 (20) Svidler,P (2723)-Carlsen,M (2776) Gjovik 2009}) 15. Nxe4
{[%emt 0:01:33]} dxe4 {[%emt 0:00:30]} 16. Bxe4 {[%emt 0:00:16]} Bxe4 {[%emt 0:
00:06]} 17. Nxd4 {[%emt 0:00:15]} Qd5 {[%emt 0:00:45]} 18. Nxc6 {[%emt 0:01:35]
} Qxc6 {[%emt 0:00:29]} 19. f3 {[%emt 0:00:09]} Bd5 {[%emt 0:04:29]} 20. b3 {
[%emt 0:05:23]} a5 {[%emt 0:11:01]} 21. Ba3 {[%emt 0:09:02]} Rfd8 {[%emt 0:01:
38]} 22. Rac1 {[%emt 0:09:33]} Qb6+ {[%emt 0:04:25]} 23. Kh1 {[%emt 0:08:15]}
Be6 {[%emt 0:10:40]} 24. Rxd8+ {[%emt 0:08:11]} Rxd8 {[%emt 0:00:11]} 25. Rd1 {
[%emt 0:00:09]} Rxd1+ {[%emt 0:02:39]} 26. Qxd1 {[%emt 0:00:07]} h6 {[%emt 0:
00:06]} 27. Qd8+ {[%emt 0:00:28]} Kh7 {[%emt 0:00:05]} 28. Qd3+ {[%emt 0:00:32]
} Kg8 {[%emt 0:00:12]} 29. Qd8+ {[%emt 0:00:14]} Kh7 {[%emt 0:00:06]} 30. Qd3+
{[%emt 0:00:06]} Kg8 {[%emt 0:00:06]} 1/2-1/2